[Event "Titled Tuesday Blitz February 22 Late 2022"]
[White "Lenderman, Aleksandr"]
[Black "Niemann, Hans Moke"]
[WhiteFideId "2021285"]
[BlackFideId "2093596"]
[WhiteElo "2651"]
[BlackElo "2636"]
[Result "1-0"]
[Round "06"]
[TimeControl "180+1"]
[Date "2022.02.22"]
[WhiteClock "0:00:04"]
[BlackClock "0:00:16"]

1. g3 {[%clk 0:02:47]}  d5 {[%clk 0:02:59]} 2. Nf3 {[%clk 0:02:38]}  Nc6 {[%clk 0:02:54]} 3. d4 {[%clk 0:02:37]}  Bf5 {[%clk 0:02:54]} 4. Bg2 {[%clk 0:02:36]}  e6 {[%clk 0:02:54]} 5. O-O {[%clk 0:02:35]}  Nb4 {[%clk 0:02:53]} 6. Na3 {[%clk 0:02:34]}  Nf6 {[%clk 0:02:52]} 7. c3 {[%clk 0:02:34]}  Nc6 {[%clk 0:02:52]} 8. Qb3 {[%clk 0:02:29]}  Rb8 {[%clk 0:02:44]} 9. Nc2 {[%clk 0:02:26]}  Be7 {[%clk 0:02:38]} 10. Ne3 {[%clk 0:02:25]}  Be4 {[%clk 0:02:38]} 11. Qd1 {[%clk 0:02:18]}  O-O {[%clk 0:02:37]} 12. Ne5 {[%clk 0:02:16]}  Bxg2 {[%clk 0:02:33]} 13. Nxc6 {[%clk 0:02:14]}  bxc6 {[%clk 0:02:33]} 14. Nxg2 {[%clk 0:02:13]}  c5 {[%clk 0:02:33]} 15. Nf4 {[%clk 0:02:10]}  cxd4 {[%clk 0:02:30]} 16. cxd4 {[%clk 0:02:10]}  c5 {[%clk 0:02:30]} 17. dxc5 {[%clk 0:02:10]}  Bxc5 {[%clk 0:02:31]} 18. Nd3 {[%clk 0:02:09]}  Bb6 {[%clk 0:02:30]} 19. Bf4 {[%clk 0:02:07]}  Rc8 {[%clk 0:02:30]} 20. Rc1 {[%clk 0:02:07]}  Ne4 {[%clk 0:02:28]} 21. Kg2 {[%clk 0:02:06]}  f6 {[%clk 0:02:26]} 22. f3 {[%clk 0:02:07]}  Nd6 {[%clk 0:02:25]} 23. Bxd6 {[%clk 0:01:57]}  Qxd6 {[%clk 0:02:25]} 24. Qa4 {[%clk 0:01:58]}  Be3 {[%clk 0:02:23]} 25. Rc2 {[%clk 0:01:57]}  Rxc2 {[%clk 0:02:22]} 26. Qxc2 {[%clk 0:01:56]}  Qd7 {[%clk 0:02:13]} 27. b4 {[%clk 0:01:53]}  Rc8 {[%clk 0:02:11]} 28. Qb3 {[%clk 0:01:53]}  Qb5 {[%clk 0:01:58]} 29. Rb1 {[%clk 0:01:49]}  Qc4 {[%clk 0:01:56]} 30. Qxc4 {[%clk 0:01:44]}  Rxc4 {[%clk 0:01:57]} 31. a4 {[%clk 0:01:40]}  e5 {[%clk 0:01:51]} 32. Kf1 {[%clk 0:01:38]}  e4 {[%clk 0:01:50]} 33. fxe4 {[%clk 0:01:38]}  dxe4 {[%clk 0:01:51]} 34. Nc5 {[%clk 0:01:16]}  Bxc5 {[%clk 0:01:44]} 35. bxc5 {[%clk 0:01:16]}  Rxa4 {[%clk 0:01:32]} 36. Rc1 {[%clk 0:01:16]}  Rb4 {[%clk 0:01:29]} 37. c6 {[%clk 0:01:15]}  Rb8 {[%clk 0:01:29]} 38. Kf2 {[%clk 0:01:11]}  Rc8 {[%clk 0:01:25]} 39. Ke3 {[%clk 0:01:10]}  Kf7 {[%clk 0:01:25]} 40. Ra1 {[%clk 0:01:06]}  Rc7 {[%clk 0:01:23]} 41. Kd4 {[%clk 0:01:04]}  Ke6 {[%clk 0:01:21]} 42. Kc5 {[%clk 0:01:03]}  f5 {[%clk 0:01:20]} 43. Rb1 {[%clk 0:01:00]}  Rc8 {[%clk 0:01:01]} 44. Rb7 {[%clk 0:00:59]}  g5 {[%clk 0:00:58]} 45. e3 {[%clk 0:00:45]}  f4 {[%clk 0:00:48]} 46. exf4 {[%clk 0:00:44]}  gxf4 {[%clk 0:00:49]} 47. gxf4 {[%clk 0:00:44]}  a5 {[%clk 0:00:46]} 48. Rxh7 {[%clk 0:00:27]}  Kf5 {[%clk 0:00:41]} 49. c7 {[%clk 0:00:19]}  a4 {[%clk 0:00:38]} 50. Kb6 {[%clk 0:00:12]}  e3 {[%clk 0:00:35]} 51. Re7 {[%clk 0:00:08]}  Kxf4 {[%clk 0:00:34]} 52. Kb7 {[%clk 0:00:05]}  Rh8 {[%clk 0:00:27]} 53. c8=Q {[%clk 0:00:05]}  Rxc8 {[%clk 0:00:26]} 54. Kxc8 {[%clk 0:00:06]}  a3 {[%clk 0:00:27]} 55. Rf7+ {[%clk 0:00:07]}  Ke4 {[%clk 0:00:25]} 56. Re7+ {[%clk 0:00:07]}  Kd3 {[%clk 0:00:24]} 57. Rd7+ {[%clk 0:00:07]}  Kc3 {[%clk 0:00:22]} 58. Rc7+ {[%clk 0:00:05]}  Kd2 {[%clk 0:00:22]} 59. Rd7+ {[%clk 0:00:06]}  Kc1 {[%clk 0:00:21]} 60. Rc7+ {[%clk 0:00:06]}  Kd1 {[%clk 0:00:22]} 61. Rd7+ {[%clk 0:00:06]}  Kc2 {[%clk 0:00:17]} 62. Rc7+ {[%clk 0:00:06]}  Kd3 {[%clk 0:00:17]} 63. Ra7 {[%clk 0:00:05]}  e2 {[%clk 0:00:15]} 64. Rxa3+ {[%clk 0:00:05]}  Ke4 {[%clk 0:00:15]} 65. Ra1 {[%clk 0:00:05]}  Kf3 {[%clk 0:00:15]} 66. h4 {[%clk 0:00:04]}  Kg4 {[%clk 0:00:16]} 67. Re1 {[%clk 0:00:03]}  Kxh4 {[%clk 0:00:16]} 68. Rxe2 {[%clk 0:00:04]} 1-0


[Site "https://www.chess.com"]

[Event "Titled Tuesday Blitz February 22 Late 2022"]
[White "Liang, Jason"]
[Black "Jarocka, Liwia"]
[WhiteFideId "30940303"]
[BlackFideId "21807558"]
[WhiteElo "1976"]
[BlackElo "1896"]
[Result "0-1"]
[Round "06"]
[TimeControl "180+1"]
[Date "2022.02.23"]
[WhiteClock "0:00:01"]
[BlackClock "0:00:16"]

1. c3 {[%clk 0:03:00]}  d5 {[%clk 0:02:59]} 2. d3 {[%clk 0:03:00]}  Nf6 {[%clk 0:02:59]} 3. g3 {[%clk 0:02:59]}  g6 {[%clk 0:02:58]} 4. Bg2 {[%clk 0:02:59]}  Bg7 {[%clk 0:02:59]} 5. Nf3 {[%clk 0:02:58]}  O-O {[%clk 0:02:59]} 6. O-O {[%clk 0:02:58]}  c6 {[%clk 0:02:59]} 7. Qc2 {[%clk 0:02:57]}  Bg4 {[%clk 0:02:58]} 8. Nbd2 {[%clk 0:02:55]}  Nbd7 {[%clk 0:02:58]} 9. e4 {[%clk 0:02:55]}  e5 {[%clk 0:02:55]} 10. h3 {[%clk 0:02:55]}  Bxf3 {[%clk 0:02:55]} 11. Nxf3 {[%clk 0:02:56]}  Rc8 {[%clk 0:02:54]} 12. Re1 {[%clk 0:02:54]}  Qc7 {[%clk 0:02:54]} 13. a4 {[%clk 0:02:48]}  Rfe8 {[%clk 0:02:54]} 14. b4 {[%clk 0:02:47]}  c5 {[%clk 0:02:46]} 15. b5 {[%clk 0:02:35]}  c4 {[%clk 0:02:39]} 16. dxc4 {[%clk 0:02:35]}  dxe4 {[%clk 0:02:33]} 17. Nd2 {[%clk 0:02:36]}  Nc5 {[%clk 0:02:32]} 18. Ba3 {[%clk 0:02:36]}  b6 {[%clk 0:02:25]} 19. Rad1 {[%clk 0:02:10]}  Bf8 {[%clk 0:02:19]} 20. Bxc5 {[%clk 0:02:08]}  Qxc5 {[%clk 0:02:15]} 21. Nxe4 {[%clk 0:02:05]}  Nxe4 {[%clk 0:02:13]} 22. Rxe4 {[%clk 0:02:05]}  Bg7 {[%clk 0:01:58]} 23. Rd5 {[%clk 0:01:47]}  Qc7 {[%clk 0:01:56]} 24. Qd3 {[%clk 0:01:14]}  f5 {[%clk 0:01:47]} 25. Rd7 {[%clk 0:00:44]}  fxe4 {[%clk 0:01:41]} 26. Qd5+ {[%clk 0:00:42]}  Kh8 {[%clk 0:01:40]} 27. Rxc7 {[%clk 0:00:41]}  Rxc7 {[%clk 0:01:41]} 28. Bxe4 {[%clk 0:00:41]}  Rec8 {[%clk 0:01:39]} 29. Qe6 {[%clk 0:00:33]}  Rd8 {[%clk 0:01:14]} 30. Kg2 {[%clk 0:00:27]}  Rcd7 {[%clk 0:01:08]} 31. h4 {[%clk 0:00:23]}  Rd6 {[%clk 0:01:09]} 32. Qe7 {[%clk 0:00:19]}  Rd2 {[%clk 0:01:06]} 33. Qg5 {[%clk 0:00:11]}  R2d6 {[%clk 0:00:50]} 34. h5 {[%clk 0:00:08]}  Rf8 {[%clk 0:00:39]} 35. Bf3 {[%clk 0:00:02]}  Rdf6 {[%clk 0:00:38]} 36. Be4 {[%clk 0:00:01]}  Rxf2+ {[%clk 0:00:38]} 37. Kh3 {[%clk 0:00:02]}  Re2 {[%clk 0:00:28]} 38. Qg4 {[%clk 0:00:01]}  Rff2 {[%clk 0:00:21]} 39. Qc8+ {[%clk 0:00:01]}  Rf8 {[%clk 0:00:21]} 40. Qg4 {[%clk 0:00:02]}  Rff2 {[%clk 0:00:20]} 41. Qc8+ {[%clk 0:00:02]}  Rf8 {[%clk 0:00:20]} 42. Qb7 {[%clk 0:00:02]}  gxh5 {[%clk 0:00:16]} 43. Kh4 {[%clk 0:00:01]}  Rh2+ {[%clk 0:00:15]} 44. Kg5 {[%clk 0:00:02]}  h6+ {[%clk 0:00:16]} 45. Kg6 {[%clk 0:00:01]}  Rf6# {[%clk 0:00:16]} 0-1


[Site "https://www.chess.com"]

[Event "Titled Tuesday Blitz February 22 Late 2022"]
[White "Liu, Leonardo"]
[Black "Vine, Elzbieta"]
[WhiteFideId "30965780"]
[BlackFideId "1119320"]
[WhiteElo "2217"]
[BlackElo "1883"]
[Result "1-0"]
[Round "06"]
[TimeControl "180+1"]
[Date "2022.02.23"]
[WhiteClock "0:02:32"]
[BlackClock "0:01:05"]

1. e4 {[%clk 0:03:00]}  c5 {[%clk 0:02:58]} 2. Nc3 {[%clk 0:03:00]}  d6 {[%clk 0:02:52]} 3. g3 {[%clk 0:03:00]}  Nc6 {[%clk 0:02:50]} 4. Bg2 {[%clk 0:03:01]}  Nf6 {[%clk 0:02:50]} 5. d3 {[%clk 0:03:02]}  Bg4 {[%clk 0:02:48]} 6. Nge2 {[%clk 0:03:01]}  Qc8 {[%clk 0:02:45]} 7. h3 {[%clk 0:03:00]}  Bd7 {[%clk 0:02:38]} 8. Be3 {[%clk 0:03:00]}  g6 {[%clk 0:02:32]} 9. Qd2 {[%clk 0:02:56]}  Bg7 {[%clk 0:02:31]} 10. Bh6 {[%clk 0:02:55]}  O-O {[%clk 0:02:30]} 11. Bxg7 {[%clk 0:02:56]}  Kxg7 {[%clk 0:02:30]} 12. h4 {[%clk 0:02:56]}  a6 {[%clk 0:02:27]} 13. Nf4 {[%clk 0:02:53]}  b5 {[%clk 0:02:24]} 14. h5 {[%clk 0:02:52]}  b4 {[%clk 0:02:20]} 15. Ncd5 {[%clk 0:02:51]}  Nxd5 {[%clk 0:02:05]} 16. Nxd5 {[%clk 0:02:52]}  c4 {[%clk 0:01:35]} 17. hxg6 {[%clk 0:02:50]}  fxg6 {[%clk 0:01:34]} 18. Qh6+ {[%clk 0:02:49]}  Kf7 {[%clk 0:01:31]} 19. Qxh7+ {[%clk 0:02:49]}  Ke8 {[%clk 0:01:31]} 20. Qxg6+ {[%clk 0:02:50]}  Kd8 {[%clk 0:01:30]} 21. Nb6 {[%clk 0:02:50]}  Qb7 {[%clk 0:01:25]} 22. Nxa8 {[%clk 0:02:49]}  cxd3 {[%clk 0:01:24]} 23. cxd3 {[%clk 0:02:48]}  Nd4 {[%clk 0:01:21]} 24. O-O {[%clk 0:02:43]}  Qxa8 {[%clk 0:01:14]} 25. Qg7 {[%clk 0:02:39]}  Ke8 {[%clk 0:01:12]} 26. Qxd4 {[%clk 0:02:39]}  Rg8 {[%clk 0:01:05]} 27. Qd5 {[%clk 0:02:32]} 1-0


[Site "https://www.chess.com"]

[Event "Titled Tuesday Blitz February 22 Late 2022"]
[White "Martin Barcelo, Carles"]
[Black "Leitao, Rafael"]
[WhiteFideId "24561444"]
[BlackFideId "2101246"]
[WhiteElo "1875"]
[BlackElo "2609"]
[Result "0-1"]
[Round "06"]
[TimeControl "180+1"]
[Date "2022.02.23"]
[WhiteClock "0:00:01"]
[BlackClock "0:00:21"]

1. e4 {[%clk 0:03:00]}  e5 {[%clk 0:02:57]} 2. Nf3 {[%clk 0:03:00]}  Nc6 {[%clk 0:02:58]} 3. Bc4 {[%clk 0:02:53]}  Nf6 {[%clk 0:02:56]} 4. d4 {[%clk 0:02:51]}  exd4 {[%clk 0:02:53]} 5. e5 {[%clk 0:02:52]}  Ne4 {[%clk 0:02:49]} 6. Qe2 {[%clk 0:02:51]}  Nc5 {[%clk 0:02:44]} 7. c3 {[%clk 0:02:51]}  d3 {[%clk 0:02:43]} 8. Qe3 {[%clk 0:02:51]}  Be7 {[%clk 0:02:40]} 9. b4 {[%clk 0:02:49]}  Ne6 {[%clk 0:02:40]} 10. Qxd3 {[%clk 0:02:44]}  d6 {[%clk 0:02:33]} 11. exd6 {[%clk 0:02:43]}  Qxd6 {[%clk 0:02:31]} 12. Qxd6 {[%clk 0:02:42]}  cxd6 {[%clk 0:02:23]} 13. O-O {[%clk 0:02:32]}  O-O {[%clk 0:02:23]} 14. Re1 {[%clk 0:02:23]}  Bf6 {[%clk 0:02:19]} 15. Bd2 {[%clk 0:02:16]}  Nxb4 {[%clk 0:02:12]} 16. Na3 {[%clk 0:02:15]}  d5 {[%clk 0:01:57]} 17. Bb3 {[%clk 0:02:09]}  Nd3 {[%clk 0:01:54]} 18. Re3 {[%clk 0:02:07]}  Ndc5 {[%clk 0:01:38]} 19. Bxd5 {[%clk 0:02:07]}  Rd8 {[%clk 0:01:37]} 20. Bb3 {[%clk 0:01:55]}  Ng5 {[%clk 0:01:24]} 21. Be1 {[%clk 0:01:21]}  Nxf3+ {[%clk 0:01:23]} 22. Rxf3 {[%clk 0:01:22]}  Nxb3 {[%clk 0:01:16]} 23. axb3 {[%clk 0:01:23]}  Be6 {[%clk 0:01:16]} 24. Nc4 {[%clk 0:00:59]}  Bxc4 {[%clk 0:01:13]} 25. bxc4 {[%clk 0:01:00]}  a6 {[%clk 0:01:07]} 26. Rb1 {[%clk 0:00:47]}  Rd7 {[%clk 0:01:06]} 27. Re3 {[%clk 0:00:44]}  Kf8 {[%clk 0:01:02]} 28. f3 {[%clk 0:00:32]}  Rc8 {[%clk 0:00:58]} 29. Re4 {[%clk 0:00:33]}  Be7 {[%clk 0:00:51]} 30. Bf2 {[%clk 0:00:31]}  Bc5 {[%clk 0:00:46]} 31. Bxc5+ {[%clk 0:00:21]}  Rxc5 {[%clk 0:00:47]} 32. Kf2 {[%clk 0:00:22]}  Rdc7 {[%clk 0:00:45]} 33. Rb4 {[%clk 0:00:18]}  a5 {[%clk 0:00:43]} 34. Ra4 {[%clk 0:00:15]}  b6 {[%clk 0:00:40]} 35. Ke3 {[%clk 0:00:15]}  f6 {[%clk 0:00:37]} 36. Kd3 {[%clk 0:00:15]}  Kf7 {[%clk 0:00:36]} 37. Ra1 {[%clk 0:00:15]}  Ra7 {[%clk 0:00:29]} 38. Re2 {[%clk 0:00:13]}  Rd7+ {[%clk 0:00:27]} 39. Kc2 {[%clk 0:00:11]}  Rxc4 {[%clk 0:00:28]} 40. Rb1 {[%clk 0:00:11]}  Rc6 {[%clk 0:00:27]} 41. Re4 {[%clk 0:00:07]}  Rdc7 {[%clk 0:00:27]} 42. Rb3 {[%clk 0:00:06]}  f5 {[%clk 0:00:27]} 43. Rd4 {[%clk 0:00:06]}  g6 {[%clk 0:00:26]} 44. Kd3 {[%clk 0:00:07]}  Kf6 {[%clk 0:00:27]} 45. Rd5 {[%clk 0:00:07]}  Ke6 {[%clk 0:00:24]} 46. Rdb5 {[%clk 0:00:07]}  Rd7+ {[%clk 0:00:25]} 47. Ke2 {[%clk 0:00:07]}  Rdd6 {[%clk 0:00:25]} 48. g3 {[%clk 0:00:05]}  Kd7 {[%clk 0:00:25]} 49. f4 {[%clk 0:00:06]}  Kc7 {[%clk 0:00:26]} 50. Re5 {[%clk 0:00:05]}  Re6 {[%clk 0:00:26]} 51. Rb5 {[%clk 0:00:03]}  Rxe5+ {[%clk 0:00:25]} 52. Rxe5 {[%clk 0:00:04]}  Kd7 {[%clk 0:00:26]} 53. Kd3 {[%clk 0:00:04]}  Re6 {[%clk 0:00:25]} 54. Rb5 {[%clk 0:00:03]}  Kc6 {[%clk 0:00:25]} 55. Rb1 {[%clk 0:00:02]}  Kc5 {[%clk 0:00:25]} 56. c4 {[%clk 0:00:02]}  Re4 {[%clk 0:00:22]} 57. Rb5+ {[%clk 0:00:01]}  Kc6 {[%clk 0:00:22]} 58. Rb1 {[%clk 0:00:01]}  Re6 {[%clk 0:00:21]} 0-1


[Site "https://www.chess.com"]

[Event "Titled Tuesday Blitz February 22 Late 2022"]
[White "Mickiewicz, Piotr"]
[Black "Prohorov, Olexandr"]
[WhiteFideId "1114891"]
[BlackFideId "14105578"]
[WhiteElo "2266"]
[BlackElo "1993"]
[Result "1-0"]
[Round "06"]
[TimeControl "180+1"]
[Date "2022.02.23"]
[WhiteClock "0:00:57"]
[BlackClock "0:01:12"]

1. Nf3 {[%clk 0:03:00]}  g6 {[%clk 0:02:59]} 2. g3 {[%clk 0:02:59]}  Bg7 {[%clk 0:03:00]} 3. Bg2 {[%clk 0:02:59]}  f5 {[%clk 0:03:00]} 4. O-O {[%clk 0:03:00]}  Nf6 {[%clk 0:03:01]} 5. d3 {[%clk 0:02:56]}  O-O {[%clk 0:03:02]} 6. b3 {[%clk 0:02:56]}  d6 {[%clk 0:03:01]} 7. Bb2 {[%clk 0:02:56]}  Nc6 {[%clk 0:03:02]} 8. Nbd2 {[%clk 0:02:55]}  e5 {[%clk 0:03:03]} 9. e4 {[%clk 0:02:47]}  h6 {[%clk 0:03:02]} 10. Re1 {[%clk 0:02:43]}  Be6 {[%clk 0:03:01]} 11. exf5 {[%clk 0:02:34]}  gxf5 {[%clk 0:03:01]} 12. d4 {[%clk 0:02:33]}  e4 {[%clk 0:03:01]} 13. Nh4 {[%clk 0:02:27]}  d5 {[%clk 0:02:54]} 14. c4 {[%clk 0:02:16]}  Ne7 {[%clk 0:02:54]} 15. Ba3 {[%clk 0:02:06]}  Rf7 {[%clk 0:02:50]} 16. Bxe7 {[%clk 0:01:58]}  Qxe7 {[%clk 0:02:49]} 17. Ng6 {[%clk 0:01:59]}  Qe8 {[%clk 0:02:38]} 18. Nf4 {[%clk 0:01:55]}  c6 {[%clk 0:02:34]} 19. Nf3 {[%clk 0:01:46]}  Nd7 {[%clk 0:02:30]} 20. cxd5 {[%clk 0:01:28]}  Bxd5 {[%clk 0:02:24]} 21. Nh4 {[%clk 0:01:28]}  Rd8 {[%clk 0:02:02]} 22. Bh3 {[%clk 0:01:27]}  Qe7 {[%clk 0:01:42]} 23. Nxf5 {[%clk 0:01:25]}  Rxf5 {[%clk 0:01:42]} 24. Bxf5 {[%clk 0:01:23]}  Qg5 {[%clk 0:01:43]} 25. Bxe4 {[%clk 0:01:05]}  Nf6 {[%clk 0:01:35]} 26. Bxd5+ {[%clk 0:01:01]}  Nxd5 {[%clk 0:01:36]} 27. Ne6 {[%clk 0:01:00]}  Qf6 {[%clk 0:01:16]} 28. Nxd8 {[%clk 0:00:59]}  Qxd8 {[%clk 0:01:17]} 29. Qg4 {[%clk 0:00:58]}  Qf6 {[%clk 0:01:12]} 30. Qe6+ {[%clk 0:00:57]} 1-0


[Site "https://www.chess.com"]

[Event "Titled Tuesday Blitz February 22 Late 2022"]
[White "Moskvin, Anatoly"]
[Black "Kujawski, Adam"]
[WhiteFideId "24199990"]
[BlackFideId "1100920"]
[WhiteElo "2079"]
[BlackElo "2053"]
[Result "1-0"]
[Round "06"]
[TimeControl "180+1"]
[Date "2022.02.23"]
[WhiteClock "0:00:09"]
[BlackClock "0:00:03"]

1. e4 {[%clk 0:03:00]}  e5 {[%clk 0:02:59]} 2. Nf3 {[%clk 0:03:00]}  Nc6 {[%clk 0:02:59]} 3. Bc4 {[%clk 0:03:00]}  Nf6 {[%clk 0:02:59]} 4. d3 {[%clk 0:03:00]}  d5 {[%clk 0:02:59]} 5. exd5 {[%clk 0:03:00]}  Nxd5 {[%clk 0:02:59]} 6. O-O {[%clk 0:03:00]}  Nb6 {[%clk 0:02:59]} 7. Bb3 {[%clk 0:02:58]}  Bg4 {[%clk 0:02:59]} 8. Re1 {[%clk 0:02:57]}  Qe7 {[%clk 0:02:59]} 9. h3 {[%clk 0:02:48]}  Bh5 {[%clk 0:02:58]} 10. c3 {[%clk 0:01:47]}  O-O-O {[%clk 0:02:53]} 11. a4 {[%clk 0:01:31]}  a5 {[%clk 0:02:44]} 12. Be3 {[%clk 0:01:25]}  Nd5 {[%clk 0:02:32]} 13. Nbd2 {[%clk 0:01:20]}  f6 {[%clk 0:02:06]} 14. d4 {[%clk 0:00:59]}  Kb8 {[%clk 0:01:33]} 15. dxe5 {[%clk 0:00:41]}  Nxe3 {[%clk 0:01:27]} 16. Rxe3 {[%clk 0:00:39]}  Nxe5 {[%clk 0:01:15]} 17. g4 {[%clk 0:00:24]}  Be8 {[%clk 0:00:39]} 18. Nxe5 {[%clk 0:00:24]}  fxe5 {[%clk 0:00:37]} 19. Qe2 {[%clk 0:00:25]}  Bc6 {[%clk 0:00:32]} 20. Nc4 {[%clk 0:00:05]}  Qh4 {[%clk 0:00:24]} 21. Nxa5 {[%clk 0:00:05]}  Bc5 {[%clk 0:00:20]} 22. Nxc6+ {[%clk 0:00:05]}  bxc6 {[%clk 0:00:21]} 23. Rf3 {[%clk 0:00:03]}  Rhf8 {[%clk 0:00:18]} 24. Rf1 {[%clk 0:00:03]}  Rxf3 {[%clk 0:00:17]} 25. Qxf3 {[%clk 0:00:04]}  Rf8 {[%clk 0:00:17]} 26. Qg2 {[%clk 0:00:05]}  e4 {[%clk 0:00:14]} 27. Kh1 {[%clk 0:00:04]}  Bxf2 {[%clk 0:00:11]} 28. a5 {[%clk 0:00:02]}  e3 {[%clk 0:00:09]} 29. Bc4 {[%clk 0:00:03]}  Qg5 {[%clk 0:00:04]} 30. Kh2 {[%clk 0:00:03]}  Qxa5 {[%clk 0:00:04]} 31. Qxc6 {[%clk 0:00:04]}  Qb6 {[%clk 0:00:03]} 32. Qxb6+ {[%clk 0:00:03]}  cxb6 {[%clk 0:00:04]} 33. Kg2 {[%clk 0:00:04]}  Kc7 {[%clk 0:00:05]} 34. Bd3 {[%clk 0:00:04]}  Kd6 {[%clk 0:00:05]} 35. Bxh7 {[%clk 0:00:05]}  Ke5 {[%clk 0:00:05]} 36. Bd3 {[%clk 0:00:05]}  Rd8 {[%clk 0:00:06]} 37. Bc4 {[%clk 0:00:05]}  Rd2 {[%clk 0:00:06]} 38. b3 {[%clk 0:00:05]}  Bh4+ {[%clk 0:00:06]} 39. Kf3 {[%clk 0:00:05]}  Bf2 {[%clk 0:00:05]} 40. Be2 {[%clk 0:00:04]}  Rb2 {[%clk 0:00:05]} 41. b4 {[%clk 0:00:04]}  Rc2 {[%clk 0:00:05]} 42. c4 {[%clk 0:00:05]}  Rb2 {[%clk 0:00:05]} 43. b5 {[%clk 0:00:06]}  Kd4 {[%clk 0:00:05]} 44. Rd1+ {[%clk 0:00:06]}  Kc3 {[%clk 0:00:04]} 45. Rd7 {[%clk 0:00:06]}  Rb1 {[%clk 0:00:04]} 46. Rxg7 {[%clk 0:00:07]}  Rg1 {[%clk 0:00:03]} 47. g5 {[%clk 0:00:07]}  Rg3+ {[%clk 0:00:03]} 48. Ke4 {[%clk 0:00:07]}  Kd2 {[%clk 0:00:04]} 49. Bg4 {[%clk 0:00:07]}  e2 {[%clk 0:00:03]} 50. Rd7+ {[%clk 0:00:08]}  Kc2 {[%clk 0:00:03]} 51. Bxe2 {[%clk 0:00:08]}  Rxg5 {[%clk 0:00:03]} 52. Kf4 {[%clk 0:00:08]}  Rg1 {[%clk 0:00:02]} 53. h4 {[%clk 0:00:09]}  Bc5 {[%clk 0:00:03]} 54. h5 {[%clk 0:00:09]}  Re1 {[%clk 0:00:03]} 55. Bf3 {[%clk 0:00:09]}  Rf1 {[%clk 0:00:03]} 56. Kg4 {[%clk 0:00:09]}  Rg1+ {[%clk 0:00:03]} 57. Kf5 {[%clk 0:00:10]}  Rg7 {[%clk 0:00:03]} 58. Rxg7 {[%clk 0:00:09]} 1-0


[Site "https://www.chess.com"]

[Event "Titled Tuesday Blitz February 22 Late 2022"]
[White "Pesotskiy, Mikhail"]
[Black "Lopez Del Alamo, Antonio"]
[WhiteFideId "34164453"]
[BlackFideId "2227339"]
[WhiteElo "2010"]
[BlackElo "2082"]
[Result "0-1"]
[Round "06"]
[TimeControl "180+1"]
[Date "2022.02.23"]
[WhiteClock "0:00:04"]
[BlackClock "0:00:36"]

1. d4 {[%clk 0:02:54]}  Nf6 {[%clk 0:02:58]} 2. c4 {[%clk 0:02:54]}  g6 {[%clk 0:02:57]} 3. Nc3 {[%clk 0:02:54]}  Bg7 {[%clk 0:02:57]} 4. e4 {[%clk 0:02:55]}  d6 {[%clk 0:02:58]} 5. f3 {[%clk 0:02:55]}  O-O {[%clk 0:02:58]} 6. Be3 {[%clk 0:02:56]}  b6 {[%clk 0:02:58]} 7. Bd3 {[%clk 0:02:55]}  a6 {[%clk 0:02:57]} 8. Nge2 {[%clk 0:02:54]}  c5 {[%clk 0:02:57]} 9. O-O {[%clk 0:02:53]}  cxd4 {[%clk 0:02:52]} 10. Nxd4 {[%clk 0:02:54]}  Bb7 {[%clk 0:02:52]} 11. Rc1 {[%clk 0:01:06]}  e6 {[%clk 0:02:47]} 12. Qd2 {[%clk 0:01:02]}  Qc7 {[%clk 0:02:43]} 13. Rfd1 {[%clk 0:01:02]}  Re8 {[%clk 0:02:40]} 14. Bf1 {[%clk 0:00:59]}  Nbd7 {[%clk 0:02:35]} 15. Nc2 {[%clk 0:00:55]}  Bf8 {[%clk 0:02:34]} 16. Bf4 {[%clk 0:00:49]}  Ne5 {[%clk 0:02:28]} 17. b3 {[%clk 0:00:50]}  Rac8 {[%clk 0:02:20]} 18. Be3 {[%clk 0:00:43]}  b5 {[%clk 0:01:55]} 19. Bd4 {[%clk 0:00:43]}  bxc4 {[%clk 0:01:50]} 20. Bxe5 {[%clk 0:00:44]}  dxe5 {[%clk 0:01:45]} 21. Bxc4 {[%clk 0:00:44]}  Bc5+ {[%clk 0:01:29]} 22. Kh1 {[%clk 0:00:44]}  Kg7 {[%clk 0:01:19]} 23. Qe2 {[%clk 0:00:44]}  h5 {[%clk 0:01:15]} 24. Bxa6 {[%clk 0:00:42]}  h4 {[%clk 0:01:08]} 25. Bxb7 {[%clk 0:00:40]}  Qxb7 {[%clk 0:01:07]} 26. Ne3 {[%clk 0:00:39]}  Nh5 {[%clk 0:01:05]} 27. Nc4 {[%clk 0:00:32]}  Rh8 {[%clk 0:00:50]} 28. Ne3 {[%clk 0:00:04]}  Ng3+ {[%clk 0:00:36]} 29. hxg3 {[%clk 0:00:04]}  hxg3+ {[%clk 0:00:37]} 30. Kg1 {[%clk 0:00:04]}  Qe7 {[%clk 0:00:36]} 0-1


[Site "https://www.chess.com"]

[Event "Titled Tuesday Blitz February 22 Late 2022"]
[White "Peterson, Eric"]
[Black "Baches Garcia, Guillermo"]
[WhiteFideId "14908395"]
[BlackFideId "2209764"]
[WhiteElo "2195"]
[BlackElo "2393"]
[Result "0-1"]
[Round "06"]
[TimeControl "180+1"]
[Date "2022.02.23"]
[WhiteClock "0:00:02"]
[BlackClock "0:00:14"]

1. e4 {[%clk 0:02:55]}  c5 {[%clk 0:02:59]} 2. d4 {[%clk 0:02:54]}  cxd4 {[%clk 0:02:59]} 3. c3 {[%clk 0:02:53]}  dxc3 {[%clk 0:03:00]} 4. Nxc3 {[%clk 0:02:54]}  Nc6 {[%clk 0:03:01]} 5. Nf3 {[%clk 0:02:54]}  e6 {[%clk 0:03:01]} 6. Bc4 {[%clk 0:02:55]}  a6 {[%clk 0:03:01]} 7. O-O {[%clk 0:02:54]}  Nge7 {[%clk 0:03:02]} 8. Bg5 {[%clk 0:02:54]}  h6 {[%clk 0:03:02]} 9. Be3 {[%clk 0:02:51]}  Ng6 {[%clk 0:02:59]} 10. Nd4 {[%clk 0:02:52]}  Be7 {[%clk 0:02:53]} 11. f4 {[%clk 0:02:51]}  O-O {[%clk 0:02:50]} 12. Bb3 {[%clk 0:02:37]}  b5 {[%clk 0:02:34]} 13. f5 {[%clk 0:02:26]}  Nge5 {[%clk 0:02:32]} 14. Nxc6 {[%clk 0:02:16]}  dxc6 {[%clk 0:02:14]} 15. fxe6 {[%clk 0:02:06]}  Bxe6 {[%clk 0:02:06]} 16. Bxe6 {[%clk 0:02:05]}  fxe6 {[%clk 0:02:06]} 17. Qh5 {[%clk 0:01:59]}  Bf6 {[%clk 0:01:47]} 18. Rad1 {[%clk 0:01:52]}  Qe7 {[%clk 0:01:44]} 19. Bd4 {[%clk 0:01:45]}  Nc4 {[%clk 0:01:33]} 20. Bc5 {[%clk 0:01:43]}  Qf7 {[%clk 0:01:27]} 21. Qg4 {[%clk 0:01:22]}  Rfd8 {[%clk 0:01:22]} 22. Kh1 {[%clk 0:01:19]}  Rxd1 {[%clk 0:01:16]} 23. Rxd1 {[%clk 0:01:18]}  Bxc3 {[%clk 0:01:11]} 24. bxc3 {[%clk 0:01:16]}  Kh7 {[%clk 0:01:09]} 25. h4 {[%clk 0:01:07]}  Qg6 {[%clk 0:01:00]} 26. Qf4 {[%clk 0:00:55]}  e5 {[%clk 0:00:50]} 27. Qf3 {[%clk 0:00:51]}  h5 {[%clk 0:00:39]} 28. Rd7 {[%clk 0:00:49]}  Re8 {[%clk 0:00:38]} 29. Be7 {[%clk 0:00:29]}  Nd2 {[%clk 0:00:23]} 30. Qf5 {[%clk 0:00:18]}  Nxe4 {[%clk 0:00:19]} 31. Qxg6+ {[%clk 0:00:16]}  Kxg6 {[%clk 0:00:20]} 32. Rc7 {[%clk 0:00:08]}  Kf5 {[%clk 0:00:19]} 33. Bg5 {[%clk 0:00:06]}  Nxg5 {[%clk 0:00:17]} 34. hxg5 {[%clk 0:00:07]}  e4 {[%clk 0:00:17]} 35. Kg1 {[%clk 0:00:04]}  e3 {[%clk 0:00:16]} 36. Kf1 {[%clk 0:00:04]}  Re6 {[%clk 0:00:16]} 37. Ke2 {[%clk 0:00:04]}  Kxg5 {[%clk 0:00:16]} 38. Rxg7+ {[%clk 0:00:03]}  Kf4 {[%clk 0:00:16]} 39. Rg8 {[%clk 0:00:03]}  Ke4 {[%clk 0:00:16]} 40. Rg5 {[%clk 0:00:02]}  h4 {[%clk 0:00:15]} 41. Rg4+ {[%clk 0:00:02]}  Kd5 {[%clk 0:00:16]} 42. Rxh4 {[%clk 0:00:03]}  c5 {[%clk 0:00:15]} 43. Rg4 {[%clk 0:00:03]}  a5 {[%clk 0:00:15]} 44. Rf4 {[%clk 0:00:04]}  b4 {[%clk 0:00:15]} 45. cxb4 {[%clk 0:00:03]}  axb4 {[%clk 0:00:14]} 46. Rg4 {[%clk 0:00:02]}  c4 {[%clk 0:00:14]} 0-1


[Site "https://www.chess.com"]